bitfinex/quotes_SOLUSD_20260309
["timestamp","ask_amount","ask_price","bid_price","bid_amount"]
[1773074763702,12.01439701,85.107,85.061,0.73613587]
[1773074763924,12.69536901,85.107,85.061,0.73613587]
[1773074764425,0.68247007,85.106,85.061,0.73613587]
[1773074765317,12.01439701,85.107,85.063,0.79729073]
[1773074765841,23.76438716,85.107,85.063,0.79729073]
[1773074767007,53.13917419,85.107,85.063,0.79729073]
[1773074767210,0.6854166,85.099,85.063,0.79729073]
[1773074767420,11.75115748,85.098,85.065,0.79729073]
[1773074768819,0.68829865,85.089,85.06,0.1]
[1773074769003,0.68829865,85.079,85.06,0.1]
[1773074769403,11.75391993,85.078,85.06,0.1]
[1773074769815,0.68970742,85.079,85.06,0.1]
[1773074770023,0.68970742,85.089,85.061,0.79729073]
[1773074770206,0.69111863,85.088,85.061,0.79729073]
[1773074770411,0.69111863,85.088,85.06,0.1]
[1773074771917,12.44518934,85.087,85.06,0.1]
[1773074772121,0.69251267,85.086,85.06,0.1]
[1773074773009,0.69251267,85.086,85.06,0.89729073]
[1773074773721,11.36797945,85.09,85.06,0.89729073]
[1773074773933,11.75207032,85.092,85.062,0.79729073]
[1773074774233,11.36797945,85.09,85.062,0.79729073]
[1773074775834,11.75240042,85.089,85.064,0.79729073]
[1773074777422,11.75240042,85.089,85.065,11.75571621]
[1773074780538,11.75240042,85.089,85.06,0.1]
[1773074780539,0.70293656,85.088,85.06,0.1]
[1773074780733,0.70293656,85.088,85.06,0.89729073]
[1773074780944,0.70293656,85.092,85.06,0.89729073]
[1773074781235,11.75185499,85.093,85.06,0.89729073]
[1773074781436,12.45417259,85.098,85.06,0.89729073]
[1773074781636,0.70403212,85.097,85.06,0.89729073]
[1773074782623,11.75143367,85.096,85.061,11.75626903]
[1773074782838,11.75143367,85.096,85.062,0.79729073]
[1773074783544,0.70618531,85.095,85.062,0.79729073]
[1773074783744,12.455824,85.109,85.062,0.79729073]
[1773074784042,0.70618531,85.099,85.062,0.79729073]
[1773074784250,0.70723475,85.069,85.031,0.79729073]
[1773074784545,0.70723475,85.069,85.032,0.79729073]
[1773074784722,11.75530164,85.068,85.034,0.79729073]
[1773074784919,4.95244453,85.06,85.034,0.79729073]
[1773074785130,0.70723475,85.06,85.034,0.79729073]
[1773074785331,4.24520978,85.06,85.034,0.79729073]
[1773074785532,0.70829237,85.067,85.034,0.79729073]
[1773074786046,0.70829237,85.059,85.033,11.76014018]
[1773074786259,0.70829237,85.059,85.034,0.79729073]
[1773074787941,0.28432314,85.078,85.03,0.1]
[1773074787942,0.71035194,85.049,85.03,0.1]
[1773074788748,4.24520978,85.06,85.031,0.79729073]
[1773074788930,11.75619436,85.062,85.031,0.79729073]
[1773074789438,0.71136755,85.066,85.031,0.79729073]
[1773074790042,0.71237447,85.064,85.033,0.79729073]
[1773074790233,4.24520978,85.06,85.033,0.79729073]
[1773074790444,4.24520978,85.05,85.03,0.1]
[1773074790630,11.75571621,85.065,85.01,0.1]
[1773074790631,0.71335812,85.039,85.01,0.1]
[1773074790830,4.24520978,85.03,85.01,0.1]
[1773074791037,0.71335812,85.029,85.01,0.1]
[1773074791248,0.7143277,85.046,85.012,0.79729073]
[1773074791555,4.24520978,85.05,85.012,0.79729073]
[1773074792138,11.75792778,85.049,85.014,0.79729073]
[1773074792329,0.71528272,85.048,85.014,0.79729073]
[1773074792735,11.75665313,85.059,85.014,0.79729073]
[1773074793152,0.71719239,85.058,85.014,0.79729073]
[1773074794663,0.71811551,85.065,85.016,0.79950168]
[1773074794863,0.71811551,85.073,85.018,0.79950168]
[1773074795062,0.71811551,85.073,85.019,0.79950168]
[1773074795063,11.75474891,85.072,85.019,0.79950168]
[1773074795476,4.96425122,85.06,85.019,0.79950168]
[1773074795776,0.71904144,85.049,85.019,0.79950168]
[1773074796254,11.38117704,85.05,85.019,0.79950168]
[1773074796458,11.75474891,85.072,85.019,0.79950168]
[1773074796881,11.75474891,85.072,85.021,0.79950168]
[1773074798171,0.7217385,85.071,85.021,0.79950168]
[1773074798354,0.7217385,85.069,85.021,0.79950168]
[1773074798964,11.38117704,85.07,85.023,0.79950168]
[1773074798965,0.7217385,85.067,85.023,0.79950168]
[1773074800378,0.72348178,85.059,85.023,0.79950168]
[1773074801176,0.72348178,85.059,85.01,0.1]
[1773074801177,0.72433668,85.049,85.019,0.79950168]
[1773074803090,0.72518106,85.057,85.021,0.79950168]
[1773074803385,11.75613082,85.062,85.021,0.79950168]
[1773074804496,11.38117704,85.06,85.021,0.79950168]
[1773074804785,0.72764975,85.061,85.021,0.79950168]
[1773074805287,0.72845253,85.072,85.023,0.79652418]
[1773074806678,11.75516345,85.069,85.023,0.79652418]
[1773074807378,11.75516345,85.069,85.025,0.79652418]
[1773074807880,11.75350548,85.081,85.026,0.79652418]
[1773074808189,0.7300454,85.079,85.028,0.79652418]
[1773074813901,0.73456068,85.077,85.03,0.79652418]
[1773074817804,2.77999997,85.082,85.013,47.05132937]
[1773074817805,2.77999997,85.082,85.032,0.79652418]
[1773074818001,2.77999997,85.082,85.034,0.79652418]
[1773074818189,2.77999997,85.082,85.036,0.79652418]
[1773074818383,0.7380907,85.08,85.037,0.93868575]
[1773074818591,0.7380907,85.08,85.039,0.79652418]
[1773074819102,0.7380907,85.079,85.039,0.79652418]
[1773074819789,2.77999997,85.082,85.041,0.79652418]
[1773074820808,0.73944837,85.081,85.041,0.79652418]
[1773074821506,4.98680322,85.1,85.043,0.79652418]
[1773074821706,0.74011542,85.098,85.043,0.79652418]
[1773074821914,0.74011542,85.096,85.046,0.79652418]
[1773074822303,0.74077251,85.089,85.046,0.79652418]
[1773074822499,11.75129558,85.097,85.046,0.79652418]
[1773074822500,0.74077251,85.079,85.046,0.79652418]
[1773074823493,0.74207427,85.089,85.046,0.79652418]
[1773074824001,12.49461281,85.088,85.048,0.8211544]
[1773074825701,0.74333943,85.087,85.048,0.8211544]
[1773074826514,0.74397071,85.085,85.05,0.8211544]
[1773074828005,0.74397071,85.085,85.052,0.8211544]
[1773074828814,0.7451998,85.091,85.052,0.8211544]
[1773074829593,0.74580686,85.1,85.052,0.8211544]
[1773074830518,0.74639765,85.098,85.054,0.8211544]
[1773074831103,0.74639765,85.089,85.054,0.8211544]
[1773074833001,0.74639765,85.089,85.055,41.14984421]
[1773074833202,0.74639765,85.089,85.056,0.8211544]
[1773074834205,11.75253854,85.088,85.056,0.8211544]
[1773074834904,0.74756095,85.087,85.056,0.8211544]
[1773074835621,0.74756095,85.087,85.057,41.14887662]
[1773074835933,0.74756095,85.087,85.058,0.8211544]
[1773074836107,11.75245304,85.089,85.058,0.8211544]
[1773074837724,0.74775278,85.093,85.06,0.8211544]
[1773074837919,0.74811713,85.091,85.06,0.8211544]
[1773074838315,0.74830082,85.103,85.06,0.8211544]
[1773074838631,29.37422864,85.109,85.06,0.8211544]
[1773074838632,11.7496848,85.109,85.06,0.8211544]
[1773074839124,6.12390084,85.119,85.063,0.8211544]
[1773074839125,0.74830082,85.116,85.063,0.8211544]
[1773074839312,0.74830082,85.116,85.064,0.96331597]
[1773074839512,0.74849117,85.109,85.065,0.8211544]
[1773074839713,0.74849117,85.108,85.067,0.8211544]
[1773074840917,0.7486633,85.117,85.067,1.10547754]
[1773074841227,0.7486633,85.127,85.068,0.8211544]
[1773074841812,0.74883801,85.126,85.07,0.8211544]
[1773074843815,0.74917704,85.124,85.072,0.8211544]
[1773074844016,0.74917704,85.124,85.074,0.8211544]
[1773074844222,0.74934542,85.129,85.075,1.10547754]
[1773074844533,0.74934542,85.129,85.077,0.28432314]
[1773074844717,0.74934542,85.129,85.079,0.8211544]
[1773074845655,0.74952478,85.145,85.079,0.8211544]
[1773074845822,0.74952478,85.143,85.081,1.10547754]
[1773074846150,0.74952478,85.143,85.085,0.8211544]
[1773074846818,0.74969007,85.139,85.085,0.8211544]
[1773074848738,0.75001216,85.129,85.087,0.8211544]
[1773074851237,0.75048759,85.127,85.089,0.8211544]
[1773074851937,11.74701625,85.128,85.089,0.8211544]
[1773074852242,0.75048759,85.127,85.089,0.8211544]
[1773074854730,0.75107725,85.125,85.09,11.75226231]
[1773074855437,0.75107725,85.125,85.09,12.61127104]
[1773074855741,0.75107725,85.125,85.091,0.85900873]
[1773074856826,12.49813721,85.13,85.093,0.85900873]
[1773074857038,0.75135709,85.142,85.093,0.85900873]
[1773074857441,0.7515027,85.139,85.093,0.85900873]
[1773074858348,0.751646,85.144,85.097,0.85900873]
[1773074858551,0.1,85.16,85.104,0.85900873]
[1773074858750,0.1,85.16,85.109,0.85900873]
[1773074859052,0.751646,85.158,85.109,0.85900873]
[1773074860530,0.1,85.16,85.111,0.85900873]
[1773074860730,0.1,85.16,85.113,0.85900873]
[1773074860928,0.1,85.16,85.114,1.0011703]
[1773074861152,0.1,85.16,85.116,0.85900873]
[1773074861341,0.1,85.16,85.117,0.28432314]
[1773074861535,0.1,85.16,85.119,0.85900873]
[1773074862447,0.7521694,85.159,85.119,0.85900873]
[1773074862653,0.7521694,85.159,85.121,0.85900873]
[1773074862852,0.1,85.16,85.121,0.85900873]
[1773074863955,0.1,85.16,85.124,0.85900873]
[1773074864249,0.1,85.16,85.127,0.8020631]
[1773074864453,0.1,85.16,85.129,0.8020631]
[1773074865963,0.1,85.16,85.131,0.8020631]
[1773074868166,0.1,85.16,85.132,41.11262509]
[1773074868355,11.74071861,85.174,85.133,0.8020631]
[1773074868553,0.84039372,85.181,85.133,0.8020631]
[1773074870250,0.84039372,85.181,85.137,0.8020631]
[1773074870448,0.84039372,85.181,85.138,0.8020631]
[1773074870654,0.84039372,85.181,85.139,0.8020631]
[1773074870862,0.84039372,85.179,85.139,0.8020631]
[1773074872344,0.84039372,85.177,85.14,11.74536058]
[1773074873343,0.84039372,85.169,85.14,11.74536058]
[1773074873549,0.84039372,85.169,85.096,5.99991905]
[1773074873550,0.84039372,85.149,85.106,0.8020631]
[1773074873762,0.84039372,85.139,85.105,11.75019094]
[1773074874065,0.84039372,85.129,85.105,11.75019094]
[1773074874256,0.84039372,85.129,85.1,11.75088131]
[1773074874645,0.84039372,85.129,85.1,41.1280846]
[1773074875240,0.84039372,85.137,85.101,0.8020631]
[1773074875454,12.58628968,85.137,85.101,0.8020631]
[1773074875662,0.84039372,85.136,85.101,0.8020631]
[1773074877361,0.84039372,85.134,85.102,11.75060515]
[1773074877548,0.84039372,85.134,85.103,0.8020631]
[1773074878560,0.28432314,85.158,85.103,0.8020631]
[1773074878561,0.84039372,85.139,85.103,0.8020631]
[1773074878749,11.74549853,85.139,85.103,0.8020631]
[1773074878951,0.84039372,85.138,85.103,0.8020631]
[1773074879952,4.24553262,85.14,85.104,11.750329]
[1773074879953,11.74577445,85.137,85.104,11.750329]
[1773074880271,0.84039372,85.136,85.105,0.8020631]
[1773074880773,0.84039372,85.136,85.102,29.37651289]
[1773074880774,0.84039372,85.129,85.099,11.75090559]
[1773074881679,0.84039372,85.129,85.094,12.55374198]
[1773074881859,0.84039372,85.119,85.094,12.55374198]
[1773074882249,0.84039372,85.129,85.095,0.8020631]
[1773074883177,0.84039372,85.149,85.095,0.8020631]
[1773074884755,0.80102803,85.139,85.097,0.86470941]
[1773074885167,0.80102803,85.129,85.096,11.75143367]
[1773074885366,0.80102803,85.129,85.097,0.86470941]
[1773074885564,0.80102803,85.147,85.098,0.86470941]
[1773074885757,0.80102803,85.147,85.099,0.86470941]
[1773074886870,0.80102803,85.147,85.101,0.86470941]
[1773074887362,11.74424865,85.149,85.101,0.86470941]
[1773074889064,11.74424865,85.149,85.103,0.86470941]
[1773074890167,0.80102803,85.152,85.103,0.86470941]
[1773074891578,0.80102803,85.149,85.105,0.86470941]
[1773074893785,0.80102803,85.147,85.107,0.86470941]
[1773074895475,0.80102803,85.139,85.106,11.75005287]
[1773074895659,0.80102803,85.137,85.1,11.75088131]
[1773074895866,0.80102803,85.137,85.101,0.86470941]
[1773074898190,0.80102803,85.135,85.103,0.86470941]
[1773074901185,0.80102803,85.135,85.105,0.86470941]
[1773074901489,11.74411913,85.149,85.105,0.86470941]
[1773074901691,0.80102803,85.148,85.105,0.86470941]
[1773074903503,0.80102803,85.146,85.107,0.86470941]
[1773074904296,0.80102803,85.139,85.107,0.86470941]
[1773074904484,0.80102803,85.139,85.106,11.75005287]
[1773074905989,0.80102803,85.137,85.106,0.86470941]
[1773074909486,0.80102803,85.135,85.107,11.74991481]
[1773074910905,102.7,85.155,85.08,0.14216157]
[1773074910906,0.80102803,85.129,85.08,0.86470941]
[1773074911112,0.80102803,85.119,85.08,0.86470941]
[1773074911700,11.74570822,85.138,85.081,0.86470941]
[1773074911894,0.80102803,85.137,85.082,1.14903255]
[1773074912104,0.80102803,85.137,85.084,0.86470941]
[1773074912410,0.80102803,85.137,85.085,1.14903255]
[1773074912608,0.80102803,85.137,85.087,1.00687098]
[1773074912793,0.80102803,85.137,85.088,0.28432314]
[1773074913102,0.80102803,85.135,85.091,0.86470941]
[1773074916105,0.80694738,85.133,85.093,0.81461642]
[1773074917511,0.80694738,85.129,85.095,0.81461642]
[1773074917713,11.74646431,85.132,85.095,0.81461642]
[1773074918014,0.80694738,85.131,85.095,0.81461642]
[1773074920200,0.80694738,85.129,85.097,0.81461642]
[1773074921920,0.80694738,85.127,85.099,0.81461642]
[1773074922433,0.80694738,85.139,85.099,0.81461642]
[1773074923626,11.74597518,85.136,85.1,41.1280846]
[1773074923929,0.80694738,85.146,85.101,0.81461642]
[1773074924713,0.80858355,85.139,85.101,0.81461642]
[1773074924951,0.80858355,85.129,85.1,11.75088131]
[1773074925240,0.80858355,85.119,85.096,11.75131016]
[1773074927826,0.80858355,85.117,85.096,11.75131016]
[1773074928008,11.7486724,85.116,85.096,11.75131016]
[1773074928206,12.55725595,85.116,85.096,11.75131016]
[1773074928411,0.80858355,85.116,85.096,11.75131016]
[1773074930534,0.80858355,85.116,85.096,0.83790831]
[1773074931818,11.74881043,85.115,85.096,0.83790831]
[1773074932437,0.80858355,85.114,85.08,0.83790831]
[1773074932639,0.80858355,85.112,85.082,0.83790831]
[1773074933215,0.80858355,85.116,85.082,0.83790831]
[1773074934433,0.80858355,85.129,85.082,0.83790831]
[1773074934734,0.80858355,85.129,85.084,0.83790831]
[1773074935231,0.80858355,85.137,85.085,0.83790831]
[1773074936133,0.80858355,85.137,85.087,0.83790831]
[1773074936324,0.80858355,85.137,85.089,0.83790831]
[1773074936720,0.28432314,85.158,85.091,0.83790831]
[1773074936721,11.74480879,85.144,85.091,0.83790831]
[1773074936937,11.7443463,85.148,85.092,1.12223145]
[1773074937135,114.44471896,85.145,85.094,0.98006988]
[1773074937439,102.7,85.145,85.096,0.98006988]
[1773074937623,102.7,85.145,85.097,0.28432314]
[1773074937815,102.7,85.145,85.099,0.83790831]
[1773074939427,102.7,85.147,85.102,0.83790831]
[1773074939627,102.7,85.147,85.105,0.83790831]
[1773074939841,0.80858355,85.162,85.105,0.83790831]
[1773074940440,0.80858355,85.16,85.105,0.83790831]
[1773074941528,0.80858355,85.16,85.108,0.83790831]
[1773074942543,0.80858355,85.158,85.108,0.83790831]
[1773074942943,0.80858355,85.174,85.111,0.83790831]
[1773074943133,0.80858355,85.17,85.111,0.83790831]
[1773074943729,0.84179587,85.176,85.118,0.81700948]
[1773074945948,0.84138525,85.175,85.12,1.10133262]
[1773074946246,0.84138525,85.175,85.121,0.81700948]
[1773074947648,0.8409892,85.173,85.124,0.81700948]
[1773074950846,0.8409892,85.173,85.125,11.74743024]
[1773074951047,7.26910168,85.18,85.129,0.81700948]
[1773074952133,0.84021178,85.179,85.129,0.81700948]
[1773074953239,0.83988464,85.178,85.132,0.81700948]
[1773074954661,7.26910168,85.18,85.132,0.81700948]
[1773074955251,7.26910168,85.18,85.135,0.81700948]
[1773074955453,0.83890188,85.178,85.135,0.81700948]
[1773074957153,0.83890188,85.178,85.138,0.81700948]
[1773074958944,0.83793506,85.176,85.138,0.81700948]
[1773074960252,0.83762263,85.174,85.14,0.81700948]
[1773074961662,8.10612204,85.18,85.14,0.81700948]
[1773074961870,7.26910168,85.18,85.142,0.81700948]
[1773074962167,7.26910168,85.18,85.145,0.95917105]
[1773074962362,0.83671002,85.202,85.147,0.81700948]
[1773074962554,0.83671002,85.202,85.148,0.81700948]
[1773074962758,0.83671002,85.2,85.149,0.81700948]
[1773074963160,0.83640854,85.199,85.149,0.81700948]
[1773074964250,11.73736472,85.198,85.15,41.10393422]
[1773074964456,0.83611208,85.197,85.151,0.81700948]
[1773074965446,11.73764026,85.196,85.152,41.1029688]
[1773074965668,0.83581195,85.195,85.153,0.81700948]
[1773074967073,0.8355148,85.193,85.155,0.81700948]
[1773074970361,0.8355148,85.193,85.157,0.81700948]
[1773074970658,29.33893265,85.212,85.157,0.81700948]
[1773074970659,0.83438414,85.204,85.159,0.81700948]
[1773074972771,0.83382953,85.203,85.161,0.81700948]
[1773074973371,0.83382953,85.203,85.162,0.83380573]
[1773074973556,0.83012828,85.212,85.163,0.83380573]
[1773074973753,0.83012828,85.212,85.165,0.83380573]
[1773074973958,0.83012828,85.212,85.166,0.28432314]
[1773074974170,0.83012828,85.212,85.168,0.83380573]
[1773074974674,0.83012828,85.211,85.169,0.83380573]
[1773074977069,0.83012828,85.211,85.171,0.83380573]
[1773074977378,12.56501374,85.216,85.171,0.83380573]
[1773074977870,0.83012828,85.215,85.171,0.83380573]
[1773074979178,0.83012828,85.213,85.173,0.83380573]
[1773074981777,0.83012828,85.211,85.175,0.83380573]
[1773074983289,0.79237265,85.209,85.177,0.83335076]
[1773074985981,0.79237265,85.207,85.15,0.83335076]
[1773074986278,0.79237265,85.207,85.147,1.17443949]
[1773074986279,0.79237265,85.189,85.152,11.74370537]
[1773074986886,0.79237265,85.189,85.153,0.83335076]
[1773074987890,0.79237265,85.195,85.153,0.83335076]
[1773074988079,0.79237265,85.193,85.155,0.83335076]
[1773074990677,0.79237265,85.193,85.157,0.83335076]
[1773074991686,0.79237265,85.219,85.158,0.83335076]
[1773074991890,0.79237265,85.219,85.159,0.83335076]
[1773074992590,0.79237265,85.209,85.159,0.83335076]
[1773074992779,0.79237265,85.209,85.161,0.83335076]
[1773074992982,0.79237265,85.207,85.161,0.83335076]
[1773074996882,0.79237265,85.205,85.163,0.83335076]
[1773075000087,11.73653819,85.204,85.164,11.74205063]
[1773075000295,0.79237265,85.203,85.165,0.83335076]
[1773075001486,0.79237265,85.201,85.167,0.83335076]
[1773075003990,0.79237265,85.201,85.169,0.79730784]
[1773075005902,0.82587454,85.199,85.169,0.79730784]
[1773075006219,0.82587454,85.197,85.171,0.79730784]
[1773075006710,0.82587454,85.197,85.122,17.4]
[1773075006711,0.82569002,85.189,85.146,0.79730784]
[1773075006909,0.82569002,85.179,85.135,12.54333293]
[1773075007114,0.82569002,85.179,85.136,0.79730784]
[1773075007312,0.48565907,85.169,85.136,0.79730784]
[1773075007497,0.48565907,85.159,85.123,0.79730784]
[1773075007813,193.66651796,85.198,85.116,0.79730784]
[1773075007814,0.48565907,85.149,85.116,0.79730784]
[1773075008189,0.48574584,85.147,85.116,0.79730784]
[1773075008404,4.23694052,85.16,85.118,0.79730784]
[1773075008405,0.48574584,85.153,85.118,0.79730784]
[1773075008647,0.48574584,85.165,85.118,0.79730784]
[1773075008988,4.72268636,85.16,85.118,0.79730784]
[1773075009314,0.48584065,85.169,85.118,0.93946941]
[1773075009490,0.48584065,85.169,85.119,0.79730784]
[1773075009901,11.74136129,85.169,85.119,0.79730784]
[1773075010213,0.48584065,85.168,85.119,0.79730784]
[1773075010384,0.48592322,85.166,85.121,0.79730784]
[1773075012828,0.48608298,85.164,85.123,0.79730784]
[1773075015010,0.48608298,85.164,85.125,0.79730784]
[1773075015210,0.48631328,85.17,85.125,0.79730784]
[1773075015830,12.22760518,85.17,85.125,0.79730784]
[1773075017013,12.22760518,85.17,85.128,0.79730784]
[1773075017014,0.48631328,85.17,85.128,0.79730784]
[1773075017231,0.48631328,85.17,85.129,0.79730784]
[1773075019620,0.48631328,85.17,85.131,0.79730784]
[1773075023236,0.48631328,85.17,85.133,0.79730784]
[1773075023611,0.48693125,85.168,85.132,11.74646431]
[1773075024110,0.48693125,85.168,85.133,0.79730784]
[1773075025515,0.48707272,85.166,85.135,0.79730784]
[1773075027036,0.48714175,85.164,85.136,12.54322026]
[1773075027334,0.48714175,85.164,85.137,0.79730784]
[1773075028835,0.48714175,85.164,85.133,0.79730784]
[1773075029135,102.7,85.187,85.126,0.79730784]
[1773075029136,0.48727114,85.162,85.126,0.79730784]
[1773075030542,0.48739858,85.17,85.126,0.79730784]
[1773075031624,0.4874642,85.168,85.128,0.79730784]
[1773075034133,29.35157922,85.175,85.13,0.83617843]
[1773075034134,0.48766614,85.166,85.13,0.83617843]
[1773075035939,29.35157922,85.175,85.132,0.83617843]
[1773075035940,0.48779118,85.164,85.132,0.83617843]
[1773075037144,0.48779118,85.164,85.131,11.74660229]
[1773075037351,11.74191275,85.165,85.068,47.02077908]
[1773075037352,0.48791452,85.159,85.122,12.5840227]
[1773075037647,0.48791452,85.159,85.123,0.83617843]
[1773075038348,0.48797507,85.157,85.124,12.58374668]
[1773075038549,0.48797507,85.157,85.124,11.74756825]
[1773075038751,0.48797507,85.157,85.125,0.83617843]
[1773075039332,0.48804497,85.178,85.125,0.83617843]
[1773075040349,0.4881012,85.176,85.128,0.83617843]
[1773075040542,0.4881012,85.176,85.129,0.83617843]
[1773075041837,0.4881012,85.176,85.128,0.28432314]
[1773075041838,0.48816841,85.198,85.134,0.83617843]
[1773075042037,0.50927472,85.193,85.143,0.83617843]
[1773075042253,0.48821316,85.203,85.147,0.83617843]
[1773075044444,12.22500455,85.203,85.15,0.83617843]
[1773075044746,0.48831688,85.215,85.154,0.83617843]
[1773075046443,0.4884675,85.213,85.156,1.1284839]
[1773075046636,0.4884675,85.213,85.159,0.84416076]
[1773075046833,0.4884675,85.213,85.16,0.84416076]
[1773075047643,0.4884675,85.213,85.162,1.1284839]
[1773075047848,0.1,85.22,85.165,0.84416076]
[1773075047849,0.48851618,85.219,85.165,0.84416076]
[1773075048051,0.48851618,85.219,85.166,0.84416076]
[1773075048351,0.48851618,85.219,85.168,0.28432314]
[1773075048550,0.48851618,85.219,85.171,0.84416076]
[1773075048756,0.48851618,85.219,85.172,0.98632233]
[1773075048935,0.48851618,85.219,85.174,0.84416076]
[1773075049136,0.48851618,85.219,85.175,0.98632233]
[1773075049348,0.1,85.22,85.177,0.98632233]
[1773075049540,0.1,85.22,85.178,1.1284839]
[1773075049741,0.1,85.22,85.179,0.84416076]
[1773075049945,0.48860937,85.218,85.179,0.84416076]
[1773075050655,0.48860937,85.218,85.18,41.08945761]
[1773075050839,0.48860937,85.218,85.181,0.84416076]
[1773075052838,0.48860937,85.218,85.182,41.08849287]
[1773075053155,0.48860937,85.218,85.183,0.84416076]
[1773075054337,0.1,85.22,85.183,0.84416076]
[1773075054538,11.73146593,85.241,85.185,0.84416076]
[1773075054756,0.58884619,85.24,85.186,0.84416076]
[1773075054937,0.58884619,85.24,85.189,0.84416076]
[1773075055139,0.1,85.25,85.196,4.82477569]
[1773075055353,0.1,85.25,85.204,0.85197039]
[1773075057160,0.1,85.25,85.207,0.85197039]
[1773075057359,0.1,85.25,85.21,0.85197039]
[1773075058080,0.1,85.25,85.212,0.85197039]
[1773075060057,0.1,85.25,85.215,0.85197039]
[1773075060983,0.1,85.26,85.218,0.85197039]
[1773075061270,4.33765348,85.29,85.225,0.85197039]
[1773075061271,11.72537934,85.286,85.225,0.85197039]
[1773075061457,114.42537934,85.286,85.226,0.28432314]
[1773075061659,114.42537934,85.286,85.228,0.28432314]
[1773075061874,114.42537934,85.286,85.23,0.85197039]
[1773075062378,114.42537934,85.286,85.233,0.85197039]
[1773075064165,143.73851396,85.286,85.233,0.85197039]
[1773075064364,143.73851396,85.286,85.235,1.13629353]
[1773075064564,143.73851396,85.286,85.236,0.99413196]
[1773075065172,114.42537934,85.286,85.236,0.99413196]
[1773075065360,102.7,85.286,85.239,0.85197039]
[1773075065674,11.72174547,85.312,85.243,0.85197039]
[1773075066766,29.30244592,85.318,85.243,0.85197039]
[1773075066986,4.23765348,85.32,85.254,0.85197039]
[1773075066987,11.72071871,85.319,85.254,0.85197039]
[1773075069583,41.02251549,85.319,85.257,0.85197039]
[1773075069783,4.23765348,85.3,85.255,41.05331065]
[1773075069974,0.28432314,85.315,85.25,12.58204342]
[1773075070168,4.23765348,85.29,85.251,0.85197039]
[1773075070367,87.90539034,85.319,85.251,1.13629353]
[1773075070368,4.23765348,85.31,85.251,1.13629353]
[1773075070683,4.23765348,85.31,85.254,1.13629353]
[1773075070876,4.23765348,85.31,85.255,0.99413196]
[1773075071081,41.02251549,85.319,85.257,0.99413196]
[1773075071082,4.23765348,85.3,85.257,0.99413196]
[1773075071379,11.72346686,85.299,85.26,0.85197039]
[1773075071683,4.22502175,85.29,85.247,0.85197039]
[1773075071887,4.22502175,85.28,85.24,12.58351369]
[1773075072773,4.22502175,85.28,85.241,0.85197039]
[1773075073781,41.04175705,85.279,85.242,11.73130616]
[1773075073973,41.04175705,85.279,85.242,12.58327655]
[1773075075665,11.72564236,85.284,85.243,0.85197039]
[1773075076669,4.22502175,85.29,85.243,0.85197039]
[1773075077373,4.22502175,85.28,85.243,0.85197039]
[1773075077779,4.22502175,85.28,85.244,11.73103092]
[1773075077780,11.7262163,85.279,85.244,11.73103092]
[1773075078896,4.22502175,85.27,85.239,11.73171904]
[1773075079069,4.22502175,85.27,85.229,0.85197039]
[1773075079266,4.22502175,85.26,85.229,0.85197039]
[1773075079465,4.22502175,85.27,85.229,0.85197039]
[1773075079890,4.22502175,85.26,85.194,0.85197039]
[1773075080076,4.22502175,85.25,85.196,0.85197039]
[1773075080397,4.22502175,85.26,85.198,0.85197039]
[1773075080587,4.22502175,85.26,85.2,0.85197039]
[1773075080992,11.72896702,85.259,85.203,0.85197039]
[1773075082197,41.05138459,85.259,85.203,0.85197039]
[1773075084206,11.72896702,85.259,85.206,0.85197039]
[1773075084675,4.22502175,85.25,85.206,0.85197039]
[1773075086396,11.73034287,85.249,85.208,0.85197039]
[1773075086781,4.22502175,85.22,85.194,12.5898862]
[1773075087379,4.22502175,85.22,85.194,11.45239583]
[1773075087583,4.22502175,85.22,85.19,11.73838042]
[1773075088278,11.73447235,85.219,85.19,11.73838042]
[1773075088482,11.73447235,85.219,85.179,30.20181825]
[1773075088483,4.22502175,85.21,85.183,11.73930181]
[1773075089588,11.73584949,85.209,85.183,11.73930181]
[1773075089894,41.07547323,85.209,85.175,11.74043849]
[1773075090096,41.07547323,85.209,85.178,11.74005333]
[1773075092082,4.22502175,85.2,85.178,11.74005333]
[1773075092700,4.22502175,85.2,85.182,11.7395147]
[1773075093205,4.22502175,85.2,85.178,11.7400999]
[1773075094001,4.22502175,85.21,85.178,11.7400999]
[1773075094795,11.73447235,85.219,85.189,0.85197039]
[1773075094981,11.73447235,85.219,85.19,0.85197039]
[1773075095385,4.22502175,85.23,85.19,0.85197039]
[1773075095582,4.22502175,85.22,85.19,0.85197039]
[1773075097687,4.22502175,85.21,85.176,0.85197039]
[1773075098000,41.07065324,85.219,85.176,0.85197039]
[1773075098001,4.22502175,85.2,85.176,0.85197039]
[1773075098800,4.22502175,85.21,85.176,0.85197039]
[1773075099706,11.73512095,85.215,85.189,0.85197039]
[1773075099884,11.73375164,85.225,85.191,0.85197039]
[1773075100586,4.22502175,85.22,85.191,0.85197039]
[1773075102198,11.73447235,85.219,85.193,0.85197039]
[1773075102392,4.22502175,85.22,85.193,0.85197039]
[1773075102601,11.73447235,85.219,85.193,0.85197039]